[Event "CCT Final-RR 2024"]
[Site "Oslo"]
[Date "2024.12.17"]
[Round "2"]
[White "Lazavik, Denis"]
[Black "Keymer, Vincent"]
[Result "1-0"]
[ECO "D35"]
[WhiteElo "2578"]
[BlackElo "2733"]
[Annotator "TA"]
[PlyCount "213"]
[EventDate "2024.12.11"]
[EventType "tourn"]
[EventCountry "NOR"]
[SourceTitle "playchess.com"]
[Source "ChessBase"]
[SourceQuality "1"]
[TimeControl "600+2"]

{[%evp 144,213,104,104,212,43,43,43,43,43,43,43,43,43,43,43,43,43,43,43,43,43,43,42,42,42,42,42,42,42,42,42,42,0,42,0,0,0,0,0,0,0,0,0,0,0,0,0,0,0,8,0,0,0,8,0,0,0,0,0,8,0,29979,29980,29980,29981,29981,29982,29982,29983,29983,29984]} 1. c4 {[%emt 0:00:06]} e6 {[%emt 0:03:06]} 2. Nc3 {[%emt 0:00:03]} d5 {[%emt 0:00:03]} 3. d4 {[%emt 0:00:05]} Nf6 {[%emt 0:00:03]} 4. cxd5 {[%emt 0:00:04]} exd5 {[%emt 0:00:03]} 5. Bg5 {[%emt 0:00:04]} Be7 {[%emt 0:00:04]} 6. e3 {[%emt 0:00:03]} h6 {[%emt 0:00:03]} 7. Bh4 {[%emt 0:00:03]} O-O {[%emt 0:00:04]} 8. Bd3 {[%emt 0:00:03]} c6 {[%emt 0:00:03]} 9. Nge2 {[%emt 0:00:05]} Nbd7 {[%emt 0:00:09]} 10. O-O {[%emt 0:00:04]} Re8 {[%emt 0:00:04]} 11. a4 {[%emt 0:00:04]} Nh5 {[%emt 0:00:34]} 12. Bxe7 {[%emt 0:00:03]} Qxe7 {[%emt 0:00:03]} 13. a5 {[%emt 0:00:03]} g6 {[%emt 0:00:07]} 14. Qd2 {[%emt 0:00:29]} Ndf6 {[%emt 0:00:04]} 15. Rfe1 {[%emt 0:00:19]} Ng7 {[%emt 0:00:19]} 16. Ng3 {[%emt 0:00:07]} h5 {[%emt 0:01:02]} 17. e4 {[%emt 0:01:06]} h4 {[%emt 0:00:06]} 18. exd5 {[%emt 0:00:08]} Qd8 {[%emt 0:00:03]} 19. Nge4 {[%emt 0:00:25]} Nxd5 {[%emt 0:00:25]} 20. h3 {[%emt 0:00:43]} Bf5 {[%emt 0:00:11]} 21. Qh6 {[%emt 0:01:24]} Bxe4 {[%emt 0:00:03]} 22. Bxe4 {[%emt 0:00:03]} Nxc3 {[%emt 0:00:12]} 23. bxc3 {[%emt 0:00:03]} Qf6 {[%emt 0:00:03]} 24. Bf3 {[%emt 0:00:17]} Rad8 {[%emt 0:00:41]} 25. Rab1 {[%emt 0:00:07]} Rxe1+ {[%emt 0:00:13]} 26. Rxe1 {[%emt 0:00:03]} Re8 {[%emt 0:00:03]} 27. Rb1 {[%emt 0:00:05]} Re7 {[%emt 0:00:13]} 28. Qd2 {[%emt 0:00:19]} Nf5 {[%emt 0:00:16]} 29. Qf4 {[%emt 0:00:54]} Qd6 {[%emt 0:00:03]} 30. Qg5 {[%emt 0:00:03]} Kg7 {[%emt 0:00:06]} 31. Bg4 {[%emt 0:00:05]} Qf6 {[%emt 0:00:04]} 32. Qd2 {[%emt 0:00:16]} Nd6 {[%emt 0:00:03]} 33. Qa2 {[%emt 0:00:07]} Ne4 {[%emt 0:00:06]} 34. Qc2 {[%emt 0:00:03]} Nd6 {[%emt 0:00:22]} 35. Qd3 {[%emt 0:00:10]} Qf4 {[%emt 0:00:09]} 36. Bf3 {[%emt 0:00:26]} a6 {[%emt 0:00:10]} 37. c4 {[%emt 0:00:05]} Nf5 {[%emt 0:00:06]} 38. Rd1 {[%emt 0:00:02]} Qd6 {[%emt 0:00:19]} 39. d5 {[%emt 0:00:05]} c5 {[%emt 0:00:03]} 40. Be2 {[%emt 0:00:20]} Nd4 {[%emt 0:00:04]} 41. Bf1 {[%emt 0:00:02]} Qf6 {[%emt 0:00:03]} 42. Rb1 {[%emt 0:00:06]} Qf4 {[%emt 0:00:04]} 43. Qa3 {[%emt 0:00:08]} Ne2+ {[%emt 0:00:21]} 44. Bxe2 {[%emt 0:00:04]} Rxe2 {[%emt 0:00:03]} 45. Qxc5 {[%emt 0:00:06]} Rc2 {[%emt 0:00:10]} 46. Qe3 {[%emt 0:00:47]} Rxc4 {[%emt 0:00:03]} 47. Qxf4 {[%emt 0:00:31]} Rxf4 {[%emt 0:00:03]} 48. d6 {[%emt 0:00:03]} Rd4 {[%emt 0:00:08]} 49. Rxb7 {[%emt 0:00:02]} Rxd6 {[%emt 0:00:04]} 50. Rb6 {[%emt 0:00:03]} Rd1+ {[%emt 0:00:04]} 51. Kh2 {[%emt 0:00:03]} Rd2 {[%emt 0:00:02]} 52. f3 {[%emt 0:00:02]} Ra2 {[%emt 0:00:04]} 53. Rxa6 {[%emt 0:00:03]} Ra1 {[%emt 0:00:03]} 54. Ra7 {[%emt 0:00:03]} g5 {[%emt 0:00:03]} 55. Ra8 {[%emt 0:00:06]} Kh7 {[%emt 0:00:03]} 56. Ra6 {[%emt 0:00:04]} Kg7 {[%emt 0:00:03]} 57. Ra8 {[%emt 0:00:05]} Kh7 {[%emt 0:00:02]} 58. a6 {[%emt 0:00:03]} Kg7 {[%emt 0:00:03]} 59. a7 {[%emt 0:00:06]} Kh7 {[%emt 0:00:03]} 60. g4 {[%emt 0:00:02]} hxg3+ {[%emt 0:00:15]} 61. Kxg3 {[%emt 0:00:02]} Ra4 {[%emt 0:00:02]} 62. Kf2 {[%emt 0:00:03]} Kg7 {[%emt 0:00:02]} 63. Ke3 {[%emt 0:00:02]} Ra1 {[%emt 0:00:02]} 64. Kd4 {[%emt 0:00:02]} Ra5 {[%emt 0:00:03]} 65. Kc4 {[%emt 0:00:02]} Ra1 {[%emt 0:00:02]} 66. Kc5 {[%emt 0:00:07]} Ra2 {[%emt 0:00:03]} 67. Kb6 {[%emt 0:00:02]} Rb2+ {[%emt 0:00:02]} 68. Kc6 {[%emt 0:00:02]} Rc2+ {[%emt 0:00:02]} 69. Kd6 {[%emt 0:00:03]} Ra2 {[%emt 0:00:02]} 70. Ke5 {[%emt 0:00:09]} Ra5+ {[%emt 0:00:02]} 71. Ke4 {[%emt 0:00:02]} Ra4+ {[%emt 0:00:01]} 72. Kf5 {[%emt 0:00:03]} Ra5+ {[%emt 0:00:02]} 73. Kg4 {[%emt 0:00:02]} Kh7 {[%emt 0:00:02] [#]} (73... Kf6 $16) 74. Re8 $2 {[%emt 0:00:10]} (74. f4 $1 $18 {[%cal Rf4g5]}) 74... Rxa7 $14 {[%emt 0:00:03]} 75. Kxg5 {[%emt 0:00:01]} Kg7 {[%emt 0:00:03]} 76. h4 {[%emt 0:00:02]} Ra1 {[%emt 0:00:05]} 77. Re4 {[%emt 0:00:02]} Ra5+ {[%emt 0:00:02]} 78. Kf4 {[%emt 0:00:01]} Ra1 {[%emt 0:00:02]} 79. Re5 {[%emt 0:00:03]} Ra4+ {[%emt 0:00:03]} 80. Kg3 {[%emt 0:00:02]} f6 {[%emt 0:00:02]} 81. Rb5 {[%emt 0:00:03]} Ra1 {[%emt 0:00:02]} 82. Kg4 {[%emt 0:00:02]} Ra4+ {[%emt 0:00:03]} 83. f4 {[%emt 0:00:02]} Kg6 {[%emt 0:00:10]} 84. h5+ {[%emt 0:00:02]} Kh6 {[%emt 0:00:02]} 85. Rb6 {[%emt 0:00:02]} Kg7 {[%emt 0:00:02]} 86. Rb7+ {[%emt 0:00:03]} Kh6 {[%emt 0:00:02]} 87. Rf7 {[%emt 0:00:02]} Ra6 {[%emt 0:00:01]} 88. Kf5 {[%emt 0:00:02]} Ra4 {[%emt 0:00:06]} ({Not} 88... Kxh5 89. Rh7#) 89. Rxf6+ {[%emt 0:00:03]} Kxh5 {[%emt 0:00:02]} 90. Re6 {[%emt 0:00:02]} Rb4 {[%emt 0:00:03]} 91. Re8 {[%emt 0:00:02]} Kh6 {[%emt 0:00:02]} 92. Re7 {[%emt 0:00:02]} Ra4 {[%emt 0:00:02]} 93. Ke5 {[%emt 0:00:03]} Ra5+ {[%emt 0:00:02]} 94. Kf6 {[%emt 0:00:02]} Ra6+ {[%emt 0:00:02]} 95. Re6 {[%emt 0:00:01]} Ra5 {[%emt 0:00:02]} 96. f5 {[%emt 0:00:03]} Kh7 {[%emt 0:00:01]} 97. Re7+ {[%emt 0:00:02]} Kh6 {[%emt 0:00:02]} 98. Re8 {[%emt 0:00:01]} Kh7 {[%emt 0:00:02]} 99. Re7+ {[%emt 0:00:02]} Kh6 {[%emt 0:00:01]} 100. Ke6 {[%emt 0:00:02]} Ra6+ {[%emt 0:00:02]} 101. Kf7 {[%emt 0:00:02]} Ra5 {[%emt 0:00:02]} 102. f6 {[%emt 0:00:02]} Kg5 $2 {[%emt 0:00:02][%mdl 8192]} (102... Ra2 $11) 103. Kg7 {[%emt 0:00:01]} Ra6 {[%emt 0:00:03]} 104. f7 {[%emt 0:00:02]} Rg6+ {[%emt 0:00:02] [#]} 105. Kf8 $1 {[%emt 0:00:02]} Ra6 {[%emt 0:00:03]} 106. Rd7 {[%emt 0:00:04]} Kf6 {[%emt 0:00:02]} 107. Kg8 {[%emt 0:00:01]} 1-0

[Event "CCT Final-RR 2024"]
[Site "Oslo"]
[Date "2024.12.17"]
[Round "3"]
[White "Carlsen, Magnus"]
[Black "So, Wesley"]
[Result "0-1"]
[ECO "A20"]
[WhiteElo "2831"]
[BlackElo "2747"]
[Annotator "TA"]
[PlyCount "76"]
[EventDate "2024.12.11"]
[EventType "tourn"]
[EventCountry "NOR"]
[SourceTitle "playchess.com"]
[Source "ChessBase"]
[SourceQuality "1"]
[TimeControl "600+2"]

{[%evp 13,76,8,18,9,26,-8,0,-27,-27,-22,-24,-37,-34,-44,-22,-23,0,0,10,15,12,15,12,16,12,10,22,8,15,5,4,0,10,14,16,9,14,5,16,7,48,46,37,39,47,0,0,0,0,0,0,0,0,0,6,0,0,0,0,-38,-32,-69,-30,-894,-890]} 1. c4 {[%emt 0:00:04]} e5 {[%emt 0:00:13]} 2. g3 {[%emt 0:00:03]} Nf6 {[%emt 0:00:04]} 3. Bg2 {[%emt 0:00:04]} c6 {[%emt 0:00:13]} 4. d4 {[%emt 0:00:10]} Bb4+ {[%emt 0:00:06]} 5. Bd2 {[%emt 0:00:02]} Bxd2+ {[%emt 0:00:02]} 6. Qxd2 {[%emt 0:00:02]} d6 {[%emt 0:00:02]} 7. Nc3 {[%emt 0:00:12]} O-O {[%emt 0:00:06]} 8. Rd1 {[%emt 0:01:07]} Nbd7 {[%emt 0:01:39]} 9. Nf3 {[%emt 0:01:21]} e4 {[%emt 0:00:14]} 10. Ng5 {[%emt 0:00:33][%cal Bf3g5,Bg5h3,Bh3f4,Bf4d3,Bd3c5][%mdl 32]} d5 {[%emt 0:00:10]} 11. cxd5 {[%emt 0:00:01]} cxd5 {[%emt 0:00:01]} 12. O-O {[%emt 0:00:26]} h6 {[%emt 0:00:03]} 13. Nh3 {[%emt 0:00:02]} Re8 {[%emt 0:00:24]} 14. f3 {[%emt 0:00:03]} exf3 {[%emt 0:00:52]} 15. exf3 {[%emt 0:00:18]} Nf8 {[%emt 0:00:31]} 16. Nf4 {[%emt 0:00:09]} Qd6 {[%emt 0:00:12]} 17. Rfe1 {[%emt 0:00:09]} Bd7 {[%emt 0:00:33]} 18. Nd3 {[%emt 0:00:02]} (18. Re5 Rxe5 19. dxe5 Qxe5 20. Nfxd5 Nxd5 21. Nxd5 Re8 22. f4) 18... Ng6 {[%emt 0:00:15]} 19. Bf1 {[%emt 0:00:14]} (19. Nc5 Bc6 20. Qf2 Rxe1+ 21. Rxe1 Re8 22. Nd3) 19... h5 {[%emt 0:00:32][%cal Bh6h5,Bh5h4][%mdl 32]} (19... Rxe1 20. Rxe1 Re8 21. Nc5 Rxe1 22. Qxe1 Bc6) 20. Kf2 {[%emt 0:00:48]} h4 {[%emt 0:00:04]} 21. Nc5 {[%emt 0:00:02]} (21. Rxe8+ Rxe8 22. Re1 Rxe1 23. Qxe1 Ne8 24. Nc5) 21... Bc6 {[%emt 0:00:29]} 22. Bh3 {[%emt 0:00:21]} (22. Kg2 Rxe1 23. Rxe1 Re8 24. Rxe8+ Nxe8 25. Qe3) 22... b6 {[%emt 0:00:30]} 23. Nd3 {[%emt 0:00:06]} (23. Rxe8+ Nxe8 24. Nd3 Nc7 25. Bf5) 23... Bd7 {[%emt 0:00:13] Against Bf5} 24. Bxd7 {[%emt 0:00:08]} Qxd7 {[%emt 0:00:11]} 25. g4 {[%emt 0:00:08]} Qd6 {[%emt 0:00:06] Prevents Ne5.} 26. Kg2 {[%emt 0:00:05]} (26. Kg1 Rad8 27. Rxe8+ Nxe8 28. Qf2) 26... Nh7 {[%emt 0:00:14]} 27. f4 {[%emt 0:00:23][%cal Bf3f4,Bf4f5][%mdl 32]} Nf6 {[%emt 0:00:02]} 28. f5 {[%emt 0:01:04]} Nf8 {[%emt 0:01:16][%cal Bg6f8,Bf8h7,Bh7f6][%mdl 32]} 29. Qf4 {[%emt 0:00:03]} (29. Qg5 $14 {should be considered.}) 29... Qxf4 $11 {[%emt 0:00:17]} 30. Nxf4 {[%emt 0:00:02]} Nxg4 {[%emt 0:00:01]} 31. Ncxd5 {[%emt 0:00:34] Black must now prevent Ne7+.} Nh7 {[%emt 0:00:01]} 32. h3 {[%emt 0:01:03]} Nh6 {[%emt 0:00:01]} 33. f6 {[%emt 0:00:37]} g5 {[%emt 0:00:00]} 34. Ne7+ {[%emt 0:00:09]} (34. Nd3 {simplifies} Rxe1 35. Rxe1 Rd8 36. Re5) 34... Kf8 {[%emt 0:00:04]} 35. Nfd5 {[%emt 0:00:02]} Nxf6 $1 {[%emt 0:00:53]} 36. Nc7 {[%emt 0:00:07]} Rxe7 {[%emt 0:00:10]} 37. Nxa8 {[%emt 0:00:02]} Nd5 {[%emt 0:00:15] Hoping for ...Ne3+.} 38. Re5 $2 {[%emt 0:00:02][%mdl 8192]} (38. Rxe7 $11 Kxe7 39. Rc1) 38... Rxe5 {[%emt 0:00:01]} 0-1

[Event "CCT Final-RR 2024"]
[Site "Oslo"]
[Date "2024.12.17"]
[Round "3"]
[White "Firouzja, Alireza"]
[Black "Lazavik, Denis"]
[Result "1/2-1/2"]
[ECO "C55"]
[WhiteElo "2763"]
[BlackElo "2578"]
[Annotator "TA"]
[PlyCount "178"]
[EventDate "2024.12.11"]
[EventType "tourn"]
[EventCountry "NOR"]
[SourceTitle "playchess.com"]
[Source "ChessBase"]
[SourceQuality "1"]
[TimeControl "600+2"]

{[%evp 114,178,0,0,0,0,0,0,0,0,0,7,0,0,0,0,0,0,0,0,0,0,0,0,0,0,0,0,7,7,7,7,7,7,8,7,8,8,8,8,8,8,8,8,8,7,8,0,0,0,0,0,0,0,0,0,0,0,0,0,0,0,0,0,0,0,0]} 1. e4 {[%emt 0:00:05]} e5 {[%emt 0:02:55]} 2. Nf3 {[%emt 0:00:02]} Nc6 {[%emt 0:00:03]} 3. Bc4 {[%emt 0:00:03]} Nf6 {[%emt 0:00:03]} 4. d3 {[%emt 0:00:03]} Be7 {[%emt 0:00:03]} 5. Nc3 {[%emt 0:00:02]} O-O {[%emt 0:00:05]} 6. a4 {[%emt 0:00:04] C55: Two Knights: 4 d3, 4 d4 exd4 5 e5 and Max Lange Attack.} d6 {[%emt 0:00:03]} 7. Bd2 {[%emt 0:00:04]} Bg4 $146 {[%emt 0:00:08]} ({Predecessor:} 7... Be6 8. Nd5 Bxd5 9. exd5 Nb8 10. O-O Nbd7 11. a5 c6 12. dxc6 bxc6 13. b4 d5 {½-½ Holinka,H (2263)-Cherniack,A (2173) Copenhagen Killer Chess op 2023 (8)}) 8. h3 {[%emt 0:00:05]} Bxf3 {[%emt 0:00:04]} 9. Qxf3 {[%emt 0:00:03]} Nd4 {[%emt 0:00:03]} 10. Qd1 {[%emt 0:00:03]} c6 {[%emt 0:00:03]} 11. Ba2 {[%emt 0:00:12]} a6 {[%emt 0:00:16]} 12. O-O {[%emt 0:00:06]} b5 {[%emt 0:00:05]} 13. Be3 {[%emt 0:00:12]} Ne6 {[%emt 0:00:05]} 14. Qf3 {[%emt 0:00:21]} Qd7 {[%emt 0:00:15]} 15. h4 {[%emt 0:00:43]} h5 {[%emt 0:00:32]} 16. Ne2 {[%emt 0:00:25]} Ng4 {[%emt 0:00:15]} 17. Bd2 {[%emt 0:00:02]} g6 {[%emt 0:00:07]} 18. Qh3 {[%emt 0:00:17]} d5 {[%emt 0:00:15]} 19. exd5 {[%emt 0:00:08]} cxd5 {[%emt 0:00:03]} 20. Nc3 {[%emt 0:00:03]} d4 {[%emt 0:00:57]} 21. Nd5 {[%emt 0:00:10]} Rab8 {[%emt 0:00:07]} 22. axb5 {[%emt 0:00:50]} Rxb5 {[%emt 0:00:04]} 23. Nxe7+ {[%emt 0:00:03]} Qxe7 {[%emt 0:00:08]} 24. b4 {[%emt 0:00:02]} Nf4 {[%emt 0:00:02]} 25. Bxf4 {[%emt 0:00:38]} exf4 {[%emt 0:00:03]} 26. Bc4 {[%emt 0:00:03]} Rxb4 {[%emt 0:00:09]} 27. Rxa6 {[%emt 0:04:55]} Kg7 {[%emt 0:02:33]} 28. Qf3 {[%emt 0:00:00]} Qe5 {[%emt 0:00:00]} 29. Bb3 {[%emt 0:00:00]} Nh6 {[%emt 0:00:00]} 30. Qc6 {[%emt 0:00:00]} Qe7 {[%emt 0:00:00]} 31. Rfa1 {[%emt 0:00:00]} Re8 {[%emt 0:00:00]} 32. Rf1 {[%emt 0:00:00]} Rf8 {[%emt 0:00:00]} 33. Qd6 {[%emt 0:00:00]} Qxd6 {[%emt 0:00:00]} 34. Rxd6 {[%emt 0:00:00]} Nf5 {[%emt 0:00:00]} 35. Rd7 {[%emt 0:00:00]} Nxh4 {[%emt 0:00:00]} 36. Ra1 Nf5 {[%emt 0:00:00]} 37. Raa7 {[%emt 0:00:06]} Nh6 {[%emt 0:00:00]} 38. Kf1 {[%emt 0:00:02]} g5 {[%emt 0:00:20]} 39. Ke2 {[%emt 0:00:16]} g4 {[%emt 0:00:04]} 40. Bc4 {[%emt 0:00:05]} Rb2 {[%emt 0:00:08]} 41. Kd2 {[%emt 0:00:10]} Rb1 {[%emt 0:00:03]} 42. Rxd4 {[%emt 0:00:04]} Rg1 {[%emt 0:00:03]} 43. Bd5 {[%emt 0:00:15]} h4 {[%emt 0:00:37]} 44. Rxf4 {[%emt 0:00:04]} Kg6 {[%emt 0:00:02]} 45. Ra6+ {[%emt 0:00:19]} f6 {[%emt 0:00:05]} 46. Ra5 {[%emt 0:00:10]} f5 {[%emt 0:00:04]} 47. Rb4 {[%emt 0:00:04]} Kg5 {[%emt 0:00:05]} 48. Rb6 {[%emt 0:00:02]} Rf6 {[%emt 0:00:04]} 49. Rb7 {[%emt 0:00:03]} Rf1 {[%emt 0:00:05]} 50. Ke2 {[%emt 0:00:02]} Rc1 {[%emt 0:00:03]} 51. Rc7 {[%emt 0:00:03]} Rd6 {[%emt 0:00:04]} 52. Kd2 {[%emt 0:00:03]} Rf1 {[%emt 0:00:03]} 53. Ke2 {[%emt 0:00:03]} Rc1 {[%emt 0:00:03]} 54. d4 {[%emt 0:00:03]} h3 {[%emt 0:00:06]} 55. gxh3 {[%emt 0:00:02]} gxh3 {[%emt 0:00:03]} 56. Rg7+ {[%emt 0:00:02]} Rg6 {[%emt 0:00:03]} 57. Rxg6+ {[%emt 0:00:03]} Kxg6 {[%emt 0:00:03]} 58. Ra6+ {[%emt 0:00:03]} Kg5 {[%emt 0:00:03]} 59. f4+ {[%emt 0:00:03]} Kh5 $1 {[%emt 0:00:05]} 60. c4 {[%emt 0:00:03]} h2 {[%emt 0:00:03]} 61. c5 {[%emt 0:00:01]} h1=Q {[%emt 0:00:05]} 62. Bxh1 {[%emt 0:00:02]} Rxh1 {[%emt 0:00:02]} 63. Rf6 {[%emt 0:00:05]} Rc1 {[%emt 0:00:02]} 64. Kd2 {[%emt 0:00:02]} Rc4 $1 65. Kd3 Rc1 {[%emt 0:00:09]} 66. c6 {[%emt 0:00:02]} Ng8 {[%emt 0:00:05]} 67. Rxf5+ {[%emt 0:00:02]} Kg6 {[%emt 0:00:01]} 68. Rg5+ {[%emt 0:00:07]} Kf7 {[%emt 0:00:02]} 69. d5 {[%emt 0:00:01]} Ne7 {[%emt 0:00:03]} 70. Kd4 {[%emt 0:00:02]} Nxc6+ {[%emt 0:00:03]} 71. dxc6 {[%emt 0:00:02]} Rxc6 {[%emt 0:00:02]} 72. Ke4 {[%emt 0:00:01]} Rc4+ {[%emt 0:00:01]} 73. Kf3 {[%emt 0:00:02]} Ra4 {[%emt 0:00:02]} 74. Re5 {[%emt 0:00:02]} Ra3+ {[%emt 0:00:02]} 75. Kg4 {[%emt 0:00:02]} Ra6 {[%emt 0:00:01]} 76. Rb5 {[%emt 0:00:02]} Rc6 {[%emt 0:00:02]} 77. Rb7+ {[%emt 0:00:03]} Kf6 {[%emt 0:00:02]} 78. Rh7 {[%emt 0:00:02]} Kg6 {[%emt 0:00:01]} 79. Rh5 {[%emt 0:00:02]} Ra6 {[%emt 0:00:02]} 80. f5+ {[%emt 0:00:03]} Kg7 {[%emt 0:00:01]} 81. Kg5 {[%emt 0:00:02]} Rb6 {[%emt 0:00:02]} 82. Rh1 {[%emt 0:00:02]} Rb2 {[%emt 0:00:03]} 83. Rg1 {[%emt 0:00:03]} Kf7 {[%emt 0:00:02]} 84. Rg4 {[%emt 0:00:02]} Rc2 {[%emt 0:00:02]} 85. Ra4 {[%emt 0:00:02]} Rg2+ {[%emt 0:00:02]} 86. Kf4 {[%emt 0:00:02]} Rf2+ {[%emt 0:00:01]} 87. Ke4 {[%emt 0:00:01]} Re2+ {[%emt 0:00:02]} 88. Kd5 {[%emt 0:00:02]} Rd2+ {[%emt 0:00:02]} 89. Ke5 {[%emt 0:00:02]} Re2+ {[%emt 0:00:01]} 1/2-1/2

[Event "CCT Final-RR 2024"]
[Site "Oslo"]
[Date "2024.12.17"]
[Round "3"]
[White "Nepomniachtchi, Ian"]
[Black "Vachier-Lagrave, Maxime"]
[Result "1-0"]
[ECO "B31"]
[WhiteElo "2755"]
[BlackElo "2731"]
[Annotator "TA"]
[PlyCount "117"]
[EventDate "2024.12.11"]
[EventType "tourn"]
[EventCountry "NOR"]
[SourceTitle "playchess.com"]
[Source "ChessBase"]
[SourceQuality "1"]
[TimeControl "600+2"]

{[%evp 55,117,49,75,71,69,69,108,62,62,47,156,71,67,78,72,71,75,83,77,33,21,26,62,39,51,0,0,0,49,35,34,13,310,246,348,333,346,346,285,343,310,312,300,297,293,297,295,292,526,387,400,387,436,436,416,369,691,581,657,561,1024,970,840,800]} 1. e4 {[%emt 0:00:05]} c5 {[%emt 0:02:40]} 2. Nf3 {[%emt 0:00:03]} Nc6 {[%emt 0:00:03]} 3. Bb5 {[%emt 0:00:03]} g6 {[%emt 0:00:03]} 4. O-O {[%emt 0:00:04]} Bg7 {[%emt 0:00:02]} 5. Re1 {[%emt 0:00:03]} e5 {[%emt 0:00:04]} 6. Bxc6 {[%emt 0:00:03]} dxc6 {[%emt 0:00:03]} 7. d3 {[%emt 0:00:03]} Qe7 {[%emt 0:00:08]} 8. a4 {[%emt 0:00:05]} Nf6 {[%emt 0:00:03]} 9. a5 {[%emt 0:00:03]} O-O {[%emt 0:00:11]} 10. Be3 {[%emt 0:00:04]} Bg4 {[%emt 0:00:09]} 11. Nbd2 {[%emt 0:00:06]} Nd7 {[%emt 0:00:04]} 12. h3 {[%emt 0:00:11]} Be6 {[%emt 0:00:04]} 13. Ng5 {[%emt 0:00:06]} b6 {[%emt 0:00:12]} 14. Nxe6 {[%emt 0:00:14]} Qxe6 {[%emt 0:00:03]} 15. Ra3 {[%emt 0:00:14]} Rfd8 {[%emt 0:00:36]} 16. axb6 {[%emt 0:00:04]} axb6 {[%emt 0:00:03]} 17. Qa1 {[%emt 0:00:03]} Qe8 {[%emt 0:00:03]} 18. Ra7 {[%emt 0:00:20]} Bf8 {[%emt 0:00:14]} 19. Qa2 {[%emt 0:00:17]} Rxa7 {[%emt 0:00:11]} 20. Qxa7 {[%emt 0:00:03]} Ra8 {[%emt 0:00:07]} 21. Qb7 {[%emt 0:00:03]} Qc8 {[%emt 0:00:03]} 22. Qxc8 {[%emt 0:00:03]} Rxc8 {[%emt 0:00:02]} 23. Ra1 {[%emt 0:00:04]} Bd6 {[%emt 0:00:03]} 24. Nc4 {[%emt 0:00:18]} Bc7 {[%emt 0:00:04]} 25. Ra7 {[%emt 0:00:03]} Kf8 {[%emt 0:00:14]} 26. g3 {[%emt 0:00:03]} Ke7 {[%emt 0:00:12]} 27. Kg2 {[%emt 0:00:36]} f6 {[%emt 0:00:47]} 28. f4 {[%emt 0:00:10]} Ke6 {[%emt 0:00:03]} 29. Kf3 {[%emt 0:00:03]} b5 {[%emt 0:00:14]} 30. Nd2 {[%emt 0:00:10]} Bb6 {[%emt 0:00:04]} 31. Ra6 {[%emt 0:00:05]} (31. f5+ $1 $16 Kd6 32. Ra2) 31... Rb8 $14 {[%emt 0:00:10]} 32. Nb3 {[%emt 0:00:54]} f5 {[%emt 0:00:15]} (32... Ke7 $14) 33. exf5+ {[%emt 0:00:23]} (33. Nxc5+ $142 $1 Nxc5 34. Bxc5 Bxc5 35. Rxc6+ Bd6 36. fxe5 Kxe5 (36... fxe4+ $2 37. Kxe4 Rd8 38. d4 $18) 37. d4+ Kxd4 (37... Ke6 $2 38. e5 $18) 38. Rxd6+ Kc5 39. e5) 33... gxf5 $16 {[%emt 0:00:03]} 34. fxe5 {[%emt 0:00:15]} Nxe5+ {[%emt 0:00:15]} 35. Ke2 {[%emt 0:00:07]} Nd7 {[%emt 0:00:24]} 36. Nd2 {[%emt 0:00:07]} Rg8 {[%emt 0:00:22]} 37. Bf2 {[%emt 0:00:07]} Kd6 {[%emt 0:00:07]} 38. Nf3 {[%emt 0:00:22]} Kc7 {[%emt 0:00:15]} 39. Nh4 {[%emt 0:00:11]} Re8+ {[%emt 0:00:10]} 40. Kf3 {[%emt 0:00:15]} (40. Kf1 $14) 40... Ne5+ $11 {[%emt 0:00:28]} 41. Kg2 {[%emt 0:00:03]} Ng6 {[%emt 0:00:04]} (41... Nf7 $11 42. Nxf5 Re2) 42. Nxf5 $14 {[%emt 0:00:39]} Re2 {[%emt 0:00:07]} 43. Ne3 {[%emt 0:00:19]} Kb7 $2 {[%emt 0:00:02][%mdl 8192] [#]} (43... c4 44. Rxb6 (44. Kf3 cxd3 45. cxd3 Rd2 $11) 44... Kxb6 45. Kf3 Rxf2+ (45... cxd3 46. cxd3 Rxf2+ 47. Kxf2 $18) 46. Kxf2 $18) (43... Rd2 $11) 44. Rxb6+ $1 $18 {[%emt 0:00:09]} Kxb6 {[%emt 0:00:06] [#]} 45. Kf1 $1 {[%emt 0:00:03]} Rxf2+ {[%emt 0:00:13]} 46. Kxf2 {[%emt 0:00:03]} Kc7 {[%emt 0:00:04]} 47. Kf3 {[%emt 0:00:04]} Kd6 {[%emt 0:00:04]} 48. Ke4 {[%emt 0:00:02]} Ke6 {[%emt 0:00:03]} 49. g4 {[%emt 0:00:07]} Kf6 {[%emt 0:00:06]} 50. Nf5 {[%emt 0:00:19]} Kg5 {[%emt 0:00:05]} 51. Kf3 {[%emt 0:00:02]} h5 $2 {[%emt 0:00:11]} (51... Kf6 52. d4 cxd4 53. Nxd4 Kg5 54. Nxc6 Kh4) 52. gxh5 {[%emt 0:00:17]} Kxh5 {[%emt 0:00:03]} 53. Kg3 {[%emt 0:00:18]} Kg5 {[%emt 0:00:04]} 54. Nd6 {[%emt 0:00:03]} Kh5 {[%emt 0:00:14]} 55. Nf7 {[%emt 0:00:13]} c4 $2 {[%emt 0:00:04]} (55... b4 56. Nd8 Kg5 57. Nxc6 (57. Ne6+ Kf5 $18) 57... Nf4) 56. dxc4 $18 {[%emt 0:00:03]} bxc4 {[%emt 0:00:03]} 57. c3 {[%emt 0:00:03]} c5 {[%emt 0:00:07]} 58. Kf3 {[%emt 0:00:08]} Kh4 {[%emt 0:00:07]} 59. Ke4 {[%emt 0:00:04]} 1-0